[Event "Early-Titled-Tuesday-Blitz-September-12-2023"]
[Site "Chess.com"]
[Date "2023.09.12"]
[Round "5"]
[White "NowInChess"]
[Black "allejam"]
[Result "0-1"]
[WhiteElo "2249"]
[BlackElo "2438"]
[TimeControl "180+1"]
[EndTime "8:55:33 PDT"]
[Termination "allejam won on time"]

1. e4 {[%clk 0:03:00.9]} 1... e5 {[%clk 0:02:56.4]} 2. Nf3 {[%clk 0:02:59.6]}
2... Nc6 {[%clk 0:02:55.8]} 3. Bb5 {[%clk 0:02:59]} 3... Nf6 {[%clk 0:02:55.7]}
4. d3 {[%clk 0:02:58.7]} 4... Bc5 {[%clk 0:02:54.8]} 5. Nc3 {[%clk 0:02:55.9]}
5... h6 {[%clk 0:02:50.3]} 6. O-O {[%clk 0:02:53]} 6... d6 {[%clk 0:02:49.2]} 7.
h3 {[%clk 0:02:52.7]} 7... O-O {[%clk 0:02:49.2]} 8. Be3 {[%clk 0:02:44.8]} 8...
Bb6 {[%clk 0:02:48.5]} 9. a4 {[%clk 0:02:38.3]} 9... Ne7 {[%clk 0:01:55.3]} 10.
d4 {[%clk 0:02:30.8]} 10... c6 {[%clk 0:01:47.7]} 11. dxe5 {[%clk 0:02:19.4]}
11... dxe5 {[%clk 0:01:48.6]} 12. Bc4 {[%clk 0:02:01.7]} 12... Ng6 {[%clk
0:01:42.4]} 13. Qe2 {[%clk 0:01:50.3]} 13... Qe7 {[%clk 0:01:35.7]} 14. a5
{[%clk 0:01:43.6]} 14... Bc5 {[%clk 0:01:35.6]} 15. Nd2 {[%clk 0:01:30.2]} 15...
Bb4 {[%clk 0:01:19.6]} 16. f3 {[%clk 0:01:25.6]} 16... Be6 {[%clk 0:01:15.1]}
17. Qf2 {[%clk 0:01:14.4]} 17... Rad8 {[%clk 0:01:09.3]} 18. Bxe6 {[%clk
0:01:03.3]} 18... fxe6 {[%clk 0:01:02.6]} 19. Bxa7 {[%clk 0:01:01.1]} 19... Nf4
{[%clk 0:00:38.7]} 20. Nb3 {[%clk 0:00:51.9]} 20... N6h5 {[%clk 0:00:36.5]} 21.
Bc5 {[%clk 0:00:42.3]} 21... Qg5 {[%clk 0:00:33.4]} 22. Kh2 {[%clk 0:00:30.6]}
22... Bxc5 {[%clk 0:00:32.3]} 23. Nxc5 {[%clk 0:00:29.9]} 23... Ng6 {[%clk
0:00:30.3]} 24. Nxe6 {[%clk 0:00:23.9]} 24... Qf6 {[%clk 0:00:30.4]} 25. Nxd8
{[%clk 0:00:22.2]} 25... Rxd8 {[%clk 0:00:31.3]} 26. Rad1 {[%clk 0:00:21.2]}
26... Rf8 {[%clk 0:00:31.2]} 27. g3 {[%clk 0:00:19]} 27... Qg5 {[%clk
0:00:29.4]} 28. Rd3 {[%clk 0:00:15.6]} 28... Nf6 {[%clk 0:00:29.5]} 29. Rfd1
{[%clk 0:00:14.8]} 29... Qh5 {[%clk 0:00:29.3]} 30. Rd8 {[%clk 0:00:13.4]} 30...
Rxd8 {[%clk 0:00:28.9]} 31. Rxd8+ {[%clk 0:00:12.6]} 31... Kh7 {[%clk
0:00:29.8]} 32. Rd3 {[%clk 0:00:10.8]} 32... Qg5 {[%clk 0:00:29.9]} 33. Ne2
{[%clk 0:00:09.8]} 33... Nh5 {[%clk 0:00:28.9]} 34. h4 {[%clk 0:00:09.3]} 34...
Qf6 {[%clk 0:00:29]} 35. g4 {[%clk 0:00:08.7]} 35... Nhf4 {[%clk 0:00:29.1]} 36.
Nxf4 {[%clk 0:00:09.2]} 36... Nxf4 {[%clk 0:00:29.6]} 37. Rd7 {[%clk 0:00:09]}
37... Ne6 {[%clk 0:00:29.6]} 38. Qd2 {[%clk 0:00:08.2]} 38... Qxh4+ {[%clk
0:00:28.8]} 39. Kg2 {[%clk 0:00:07.7]} 39... Nf4+ {[%clk 0:00:29.2]} 40. Kf1
{[%clk 0:00:07.2]} 40... Qh1+ {[%clk 0:00:28.9]} 41. Kf2 {[%clk 0:00:07.6]}
41... Qg2+ {[%clk 0:00:29.1]} 42. Ke3 {[%clk 0:00:08]} 42... Qg1+ {[%clk
0:00:29.4]} 43. Qf2 {[%clk 0:00:05.6]} 43... Qc1+ {[%clk 0:00:29.1]} 44. Qd2
{[%clk 0:00:05.5]} 44... Qf1 {[%clk 0:00:25]} 45. Qf2 {[%clk 0:00:04.4]} 45...
Ng2+ {[%clk 0:00:23.5]} 46. Qxg2 {[%clk 0:00:01.8]} 46... Qxg2 {[%clk
0:00:24.4]} 47. Rd2 {[%clk 0:00:01.3]} 47... Qg1+ {[%clk 0:00:24]} 48. Kd3
{[%clk 0:00:01.9]} 48... Qc5 {[%clk 0:00:23]} 49. c3 {[%clk 0:00:01.8]} 49...
Qxa5 {[%clk 0:00:23.1]} 50. b4 {[%clk 0:00:02.7]} 50... Qb5+ {[%clk 0:00:23.6]}
51. Ke3 {[%clk 0:00:03.6]} 51... c5 {[%clk 0:00:24]} 52. Rd4 {[%clk 0:00:03.6]}
52... cxd4+ {[%clk 0:00:24.1]} 0-1

[Event "Early-Titled-Tuesday-Blitz-September-12-2023"]
[Site "Chess.com"]
[Date "2023.09.12"]
[Round "5"]
[White "farzadbfd"]
[Black "WindWhistler11"]
[Result "1-0"]
[WhiteElo "2695"]
[BlackElo "2480"]
[TimeControl "180+1"]
[EndTime "8:55:34 PDT"]
[Termination "farzadbfd won on time"]

1. d4 {[%clk 0:03:00.9]} 1... e6 {[%clk 0:03:00.1]} 2. Nf3 {[%clk 0:02:59.7]}
2... Nf6 {[%clk 0:03:00.5]} 3. c4 {[%clk 0:03:00.2]} 3... c5 {[%clk 0:03:00.9]}
4. d5 {[%clk 0:02:59.9]} 4... exd5 {[%clk 0:03:01.8]} 5. cxd5 {[%clk 0:03:00.8]}
5... Bd6 {[%clk 0:03:02.7]} 6. Nc3 {[%clk 0:03:01.2]} 6... O-O {[%clk
0:03:03.2]} 7. Bg5 {[%clk 0:03:01.6]} 7... Re8 {[%clk 0:03:03.4]} 8. e3 {[%clk
0:03:01.8]} 8... Bf8 {[%clk 0:03:04]} 9. Bd3 {[%clk 0:03:00]} 9... d6 {[%clk
0:03:04.3]} 10. O-O {[%clk 0:03:00]} 10... h6 {[%clk 0:03:04.5]} 11. Bh4 {[%clk
0:02:59.8]} 11... b6 {[%clk 0:03:01.6]} 12. a4 {[%clk 0:02:59.5]} 12... Ba6
{[%clk 0:03:02]} 13. Re1 {[%clk 0:02:57.7]} 13... Bxd3 {[%clk 0:02:52.8]} 14.
Qxd3 {[%clk 0:02:58.6]} 14... Nbd7 {[%clk 0:02:52]} 15. a5 {[%clk 0:02:51.2]}
15... bxa5 {[%clk 0:02:46.2]} 16. Bg3 {[%clk 0:02:30.4]} 16... Nh5 {[%clk
0:02:40.5]} 17. Nd2 {[%clk 0:02:24.2]} 17... Nxg3 {[%clk 0:02:37.3]} 18. hxg3
{[%clk 0:02:25.1]} 18... Rb8 {[%clk 0:02:32.7]} 19. Ra2 {[%clk 0:02:23.5]} 19...
Ne5 {[%clk 0:02:27.5]} 20. Qa6 {[%clk 0:02:21.6]} 20... Qb6 {[%clk 0:02:25.8]}
21. Qe2 {[%clk 0:02:11.2]} 21... g6 {[%clk 0:02:11.2]} 22. Rea1 {[%clk
0:02:11.5]} 22... Bg7 {[%clk 0:02:05.2]} 23. f4 {[%clk 0:02:09.3]} 23... Nd7
{[%clk 0:01:59.1]} 24. Nc4 {[%clk 0:02:09.8]} 24... Qc7 {[%clk 0:01:59.1]} 25.
Rxa5 {[%clk 0:02:06.6]} 25... Rb7 {[%clk 0:01:31.6]} 26. Nb5 {[%clk 0:02:06.6]}
26... Rxb5 {[%clk 0:01:31.9]} 27. Rxb5 {[%clk 0:02:07.5]} 27... Nf6 {[%clk
0:01:32.7]} 28. Qd3 {[%clk 0:01:52.2]} 28... Qd7 {[%clk 0:01:27.2]} 29. Nd2
{[%clk 0:01:40.1]} 29... Qg4 {[%clk 0:01:21.8]} 30. Rxa7 {[%clk 0:01:22]} 30...
Qxg3 {[%clk 0:01:19]} 31. Nf1 {[%clk 0:01:22]} 31... Qe1 {[%clk 0:01:09.4]} 32.
Rbb7 {[%clk 0:00:58.5]} 32... Rf8 {[%clk 0:01:00.5]} 33. Qd2 {[%clk 0:00:53.5]}
33... Qb1 {[%clk 0:00:58.2]} 34. b4 {[%clk 0:00:43.8]} 34... c4 {[%clk
0:00:56.1]} 35. Rc7 {[%clk 0:00:33.8]} 35... Ne4 {[%clk 0:00:49.9]} 36. Qa2
{[%clk 0:00:34.2]} 36... Qe1 {[%clk 0:00:41.5]} 37. Qxc4 {[%clk 0:00:13.2]}
37... Qf2+ {[%clk 0:00:37.9]} 38. Kh1 {[%clk 0:00:09.5]} 38... Qh4+ {[%clk
0:00:36]} 39. Kg1 {[%clk 0:00:06.9]} 39... Qf2+ {[%clk 0:00:36.9]} 40. Kh1
{[%clk 0:00:07.2]} 40... Qh4+ {[%clk 0:00:19.1]} 41. Nh2 {[%clk 0:00:07.2]}
41... Ng3+ {[%clk 0:00:15.3]} 42. Kg1 {[%clk 0:00:07.3]} 42... Nf5 {[%clk
0:00:14.1]} 43. Qe2 {[%clk 0:00:06.3]} 43... Qg3 {[%clk 0:00:09.6]} 44. Nf1
{[%clk 0:00:06.3]} 44... Qh4 {[%clk 0:00:08]} 45. b5 {[%clk 0:00:06.9]} 1-0

[Event "Early-Titled-Tuesday-Blitz-September-12-2023"]
[Site "Chess.com"]
[Date "2023.09.12"]
[Round "5"]
[White "Aleksandar-Topalov"]
[Black "masnyszachistaaa"]
[Result "1/2-1/2"]
[WhiteElo "2343"]
[BlackElo "2540"]
[TimeControl "180+1"]
[EndTime "8:55:34 PDT"]
[Termination "Game drawn by repetition"]

1. b3 {[%clk 0:03:00.9]} 1... d5 {[%clk 0:02:59.3]} 2. Bb2 {[%clk 0:03:00.7]}
2... Bg4 {[%clk 0:02:59.5]} 3. g3 {[%clk 0:02:59.2]} 3... c6 {[%clk 0:02:58]} 4.
Bg2 {[%clk 0:02:59.4]} 4... Nd7 {[%clk 0:02:58.6]} 5. Nf3 {[%clk 0:02:59.1]}
5... Ngf6 {[%clk 0:02:57.6]} 6. O-O {[%clk 0:02:58.8]} 6... Qc7 {[%clk
0:02:57.9]} 7. d4 {[%clk 0:02:56.2]} 7... e6 {[%clk 0:02:57.5]} 8. Nbd2 {[%clk
0:02:55.9]} 8... Bd6 {[%clk 0:02:57.4]} 9. c4 {[%clk 0:02:55]} 9... O-O {[%clk
0:02:57.3]} 10. Rc1 {[%clk 0:02:54.2]} 10... a5 {[%clk 0:02:56.5]} 11. a3 {[%clk
0:02:52.7]} 11... Qd8 {[%clk 0:02:55.2]} 12. h3 {[%clk 0:02:42.7]} 12... Bh5
{[%clk 0:02:55.2]} 13. Qe1 {[%clk 0:02:37.5]} 13... Qe7 {[%clk 0:02:54.7]} 14.
c5 {[%clk 0:02:33.2]} 14... Bc7 {[%clk 0:02:54.3]} 15. e4 {[%clk 0:02:25.2]}
15... dxe4 {[%clk 0:02:54.4]} 16. Nxe4 {[%clk 0:02:25.2]} 16... Nxe4 {[%clk
0:02:55.3]} 17. Qxe4 {[%clk 0:02:24.8]} 17... Nf6 {[%clk 0:02:56.2]} 18. Qe2
{[%clk 0:02:14.3]} 18... Nd5 {[%clk 0:02:55.2]} 19. Rfe1 {[%clk 0:02:05.6]}
19... Rad8 {[%clk 0:02:54.2]} 20. Qd2 {[%clk 0:01:49.7]} 20... Rfe8 {[%clk
0:02:51.5]} 21. Ne5 {[%clk 0:01:39.5]} 21... Bg6 {[%clk 0:02:28.8]} 22. Nc4
{[%clk 0:01:36.4]} 22... Ra8 {[%clk 0:02:26.6]} 23. Ne3 {[%clk 0:01:20.7]} 23...
Nf6 {[%clk 0:02:24.5]} 24. Qc3 {[%clk 0:01:02.1]} 24... Red8 {[%clk 0:02:23.9]}
25. Nc4 {[%clk 0:00:50.7]} 25... Nd5 {[%clk 0:02:10.9]} 26. Qd2 {[%clk
0:00:49.6]} 26... Qd7 {[%clk 0:02:09.8]} 27. Ne5 {[%clk 0:00:46.6]} 27... Bxe5
{[%clk 0:02:10.1]} 28. dxe5 {[%clk 0:00:45.9]} 28... Nc7 {[%clk 0:02:06.9]} 29.
Qc3 {[%clk 0:00:32.9]} 29... Nb5 {[%clk 0:02:05.1]} 30. Qf3 {[%clk 0:00:27.3]}
30... Qd2 {[%clk 0:01:53.2]} 31. Bc3 {[%clk 0:00:22.6]} 31... Nxc3 {[%clk
0:01:38.6]} 32. Qxc3 {[%clk 0:00:22.2]} 32... Rd3 {[%clk 0:01:34.2]} 33. Qxd2
{[%clk 0:00:20.2]} 33... Rxd2 {[%clk 0:01:35.1]} 34. Rc3 {[%clk 0:00:18.9]}
34... a4 {[%clk 0:01:34.8]} 35. b4 {[%clk 0:00:17.7]} 35... Rad8 {[%clk
0:01:35.5]} 36. b5 {[%clk 0:00:17.7]} 36... Rc8 {[%clk 0:01:23.9]} 37. bxc6
{[%clk 0:00:16.9]} 37... bxc6 {[%clk 0:01:24.8]} 38. Rec1 {[%clk 0:00:13.1]}
38... Ra2 {[%clk 0:01:20.4]} 39. Re3 {[%clk 0:00:11.5]} 39... Bc2 {[%clk
0:01:10.2]} 40. Re2 {[%clk 0:00:10.8]} 40... Bb3 {[%clk 0:01:10.9]} 41. Rxa2
{[%clk 0:00:07.8]} 41... Bxa2 {[%clk 0:01:11.8]} 42. Rc2 {[%clk 0:00:07.1]}
42... Bb3 {[%clk 0:01:02.3]} 43. Rd2 {[%clk 0:00:06.8]} 43... Kf8 {[%clk
0:00:40]} 44. Rd6 {[%clk 0:00:05.5]} 44... Bd5 {[%clk 0:00:40.6]} 45. Rd7 {[%clk
0:00:05.7]} 45... Rb8 {[%clk 0:00:36.4]} 46. Ra7 {[%clk 0:00:05.3]} 46... Rb1+
{[%clk 0:00:13.6]} 47. Kh2 {[%clk 0:00:05.7]} 47... Rb5 {[%clk 0:00:12.5]} 48.
Rxa4 {[%clk 0:00:04.2]} 48... Rxc5 {[%clk 0:00:12.4]} 49. Ra8+ {[%clk
0:00:04.5]} 49... Ke7 {[%clk 0:00:12]} 50. Ra7+ {[%clk 0:00:04.9]} 50... Ke8
{[%clk 0:00:12.3]} 51. Ra8+ {[%clk 0:00:05.3]} 51... Ke7 {[%clk 0:00:12.7]} 52.
Ra7+ {[%clk 0:00:05.7]} 52... Ke8 {[%clk 0:00:12.7]} 53. Ra8+ {[%clk 0:00:06.2]}
53... Ke7 {[%clk 0:00:11.5]} 1/2-1/2

[Event "Early-Titled-Tuesday-Blitz-September-12-2023"]
[Site "Chess.com"]
[Date "2023.09.12"]
[Round "5"]
[White "Vesper2018"]
[Black "verrbaa"]
[Result "1/2-1/2"]
[WhiteElo "2596"]
[BlackElo "2443"]
[TimeControl "180+1"]
[EndTime "8:55:39 PDT"]
[Termination "Game drawn by repetition"]

1. e4 {[%clk 0:03:00.9]} 1... c5 {[%clk 0:02:56.6]} 2. Nc3 {[%clk 0:03:00.3]}
2... Nc6 {[%clk 0:02:54.9]} 3. Bb5 {[%clk 0:02:59]} 3... Nd4 {[%clk 0:02:54.6]}
4. Bc4 {[%clk 0:02:58.9]} 4... e6 {[%clk 0:02:54.7]} 5. Nge2 {[%clk 0:02:57.2]}
5... Ne7 {[%clk 0:02:48.9]} 6. O-O {[%clk 0:02:55.5]} 6... Nec6 {[%clk
0:02:43.5]} 7. d3 {[%clk 0:02:52.4]} 7... a6 {[%clk 0:02:38.7]} 8. a4 {[%clk
0:02:51.5]} 8... Be7 {[%clk 0:02:38.1]} 9. f4 {[%clk 0:02:49.3]} 9... d6 {[%clk
0:02:34.2]} 10. Nxd4 {[%clk 0:02:34.5]} 10... cxd4 {[%clk 0:02:31.9]} 11. Ne2
{[%clk 0:02:34.2]} 11... Qb6 {[%clk 0:02:24.2]} 12. Kh1 {[%clk 0:02:27.8]} 12...
O-O {[%clk 0:02:23.9]} 13. c3 {[%clk 0:02:27.1]} 13... dxc3 {[%clk 0:02:21.5]}
14. bxc3 {[%clk 0:02:26.1]} 14... Rd8 {[%clk 0:02:15.1]} 15. d4 {[%clk
0:02:17.7]} 15... d5 {[%clk 0:02:14.5]} 16. Bd3 {[%clk 0:02:12.4]} 16... dxe4
{[%clk 0:02:14]} 17. Bxe4 {[%clk 0:02:12.6]} 17... Na5 {[%clk 0:02:06.3]} 18. f5
{[%clk 0:01:54.7]} 18... exf5 {[%clk 0:02:03.9]} 19. Bxf5 {[%clk 0:01:54.7]}
19... Bxf5 {[%clk 0:02:04]} 20. Rxf5 {[%clk 0:01:54.7]} 20... Rac8 {[%clk
0:01:56.9]} 21. Qd3 {[%clk 0:01:38]} 21... Nb3 {[%clk 0:01:39.5]} 22. Rb1 {[%clk
0:01:35.5]} 22... Nxc1 {[%clk 0:01:39.6]} 23. Rxc1 {[%clk 0:01:31.9]} 23... g6
{[%clk 0:01:27.7]} 24. Rf3 {[%clk 0:01:25.1]} 24... Bg5 {[%clk 0:01:27.5]} 25.
Rb1 {[%clk 0:01:19.7]} 25... Qc6 {[%clk 0:01:25.5]} 26. Rbf1 {[%clk 0:01:16.3]}
26... Rc7 {[%clk 0:01:22.7]} 27. a5 {[%clk 0:01:15.5]} 27... Re8 {[%clk
0:00:56.5]} 28. Ng3 {[%clk 0:01:03.9]} 28... Rce7 {[%clk 0:00:39.3]} 29. c4
{[%clk 0:00:49.3]} 29... Re3 {[%clk 0:00:38]} 30. Rxe3 {[%clk 0:00:49.6]} 30...
Rxe3 {[%clk 0:00:38.9]} 31. Qc2 {[%clk 0:00:50]} 31... Bh4 {[%clk 0:00:32.8]}
32. Ne2 {[%clk 0:00:42.9]} 32... Qe8 {[%clk 0:00:27.2]} 33. Nf4 {[%clk
0:00:37.5]} 33... Re1 {[%clk 0:00:26]} 34. Qd3 {[%clk 0:00:37.6]} 34... Qe4
{[%clk 0:00:21.8]} 35. Kg1 {[%clk 0:00:29.6]} 35... Rxf1+ {[%clk 0:00:03.2]} 36.
Qxf1 {[%clk 0:00:29]} 36... Qxd4+ {[%clk 0:00:03.8]} 37. Kh1 {[%clk 0:00:28.5]}
37... Bf2 {[%clk 0:00:02.5]} 38. Nd5 {[%clk 0:00:26.4]} 38... Kg7 {[%clk
0:00:02.3]} 39. Nb6 {[%clk 0:00:18.9]} 39... Be3 {[%clk 0:00:01.3]} 40. Nd5
{[%clk 0:00:17.6]} 40... f5 {[%clk 0:00:01.7]} 41. Nxe3 {[%clk 0:00:13.7]} 41...
Qxe3 {[%clk 0:00:01.5]} 42. Qb1 {[%clk 0:00:14.3]} 42... Qd4 {[%clk 0:00:01.5]}
43. Qxb7+ {[%clk 0:00:14]} 43... Kh6 {[%clk 0:00:01.7]} 44. Qb6 {[%clk
0:00:04.5]} 44... Qxc4 {[%clk 0:00:01.7]} 45. h3 {[%clk 0:00:04.9]} 45... Kg7
{[%clk 0:00:01]} 46. Qa7+ {[%clk 0:00:04.6]} 46... Kh6 {[%clk 0:00:01.5]} 47.
Qe3+ {[%clk 0:00:04.9]} 47... Kg7 {[%clk 0:00:01.1]} 48. Qe5+ {[%clk 0:00:04.4]}
48... Kh6 {[%clk 0:00:01.7]} 49. Qe3+ {[%clk 0:00:04.3]} 49... Kg7 {[%clk
0:00:02.2]} 50. Qe5+ {[%clk 0:00:04.6]} 50... Kh6 {[%clk 0:00:02.8]} 51. Qe3+
{[%clk 0:00:04.9]} 1/2-1/2

[Event "Early-Titled-Tuesday-Blitz-September-12-2023"]
[Site "Chess.com"]
[Date "2023.09.12"]
[Round "5"]
[White "Goi_Manne"]
[Black "mjray79"]
[Result "0-1"]
[WhiteElo "2317"]
[BlackElo "2538"]
[TimeControl "180+1"]
[EndTime "8:55:40 PDT"]
[Termination "mjray79 won by resignation"]

1. e4 {[%clk 0:03:00.9]} 1... c5 {[%clk 0:02:57.2]} 2. Nf3 {[%clk 0:02:59.9]}
2... Nc6 {[%clk 0:02:57.4]} 3. c3 {[%clk 0:02:57.5]} 3... d5 {[%clk 0:02:53.6]}
4. exd5 {[%clk 0:02:58.4]} 4... Qxd5 {[%clk 0:02:54]} 5. d4 {[%clk 0:02:59]}
5... Bg4 {[%clk 0:02:54.3]} 6. Be2 {[%clk 0:02:58.7]} 6... Nf6 {[%clk
0:02:54.1]} 7. Be3 {[%clk 0:02:57.8]} 7... e6 {[%clk 0:02:53.8]} 8. O-O {[%clk
0:02:58]} 8... cxd4 {[%clk 0:02:50.6]} 9. Nxd4 {[%clk 0:02:50.2]} 9... Bxe2
{[%clk 0:02:47.3]} 10. Qxe2 {[%clk 0:02:51.1]} 10... Be7 {[%clk 0:02:32.4]} 11.
Nd2 {[%clk 0:02:49.2]} 11... O-O {[%clk 0:02:31.3]} 12. N2f3 {[%clk 0:02:48.9]}
12... Qh5 {[%clk 0:02:21.5]} 13. Rfe1 {[%clk 0:02:46.7]} 13... Rfd8 {[%clk
0:02:11.8]} 14. Nxc6 {[%clk 0:02:43.6]} 14... bxc6 {[%clk 0:02:12.7]} 15. Nd4
{[%clk 0:02:41.5]} 15... Qd5 {[%clk 0:02:10]} 16. Qf3 {[%clk 0:02:28.8]} 16...
c5 {[%clk 0:02:07.8]} 17. Qxd5 {[%clk 0:02:26.6]} 17... Rxd5 {[%clk 0:02:04]}
18. Nc6 {[%clk 0:02:20.4]} 18... Bf8 {[%clk 0:02:03.3]} 19. Rad1 {[%clk
0:02:18.5]} 19... a6 {[%clk 0:02:02.3]} 20. c4 {[%clk 0:02:05.3]} 20... Rxd1
{[%clk 0:02:01.8]} 21. Rxd1 {[%clk 0:02:06.2]} 21... Rc8 {[%clk 0:02:02.2]} 22.
Ne5 {[%clk 0:02:00.7]} 22... Be7 {[%clk 0:01:52.9]} 23. f3 {[%clk 0:01:59.9]}
23... Kf8 {[%clk 0:01:49.5]} 24. Kf2 {[%clk 0:01:56.7]} 24... Ke8 {[%clk
0:01:50.1]} 25. b3 {[%clk 0:01:54.6]} 25... h6 {[%clk 0:01:41.7]} 26. h4 {[%clk
0:01:48.7]} 26... Nh5 {[%clk 0:01:27.5]} 27. g3 {[%clk 0:01:45]} 27... f6 {[%clk
0:01:25.6]} 28. Ng6 {[%clk 0:01:41.3]} 28... f5 {[%clk 0:01:13.9]} 29. Nxe7
{[%clk 0:01:32.9]} 29... Kxe7 {[%clk 0:01:14.8]} 30. g4 {[%clk 0:01:28.8]} 30...
Nf6 {[%clk 0:01:11.6]} 31. g5 {[%clk 0:01:25]} 31... hxg5 {[%clk 0:01:10.7]} 32.
hxg5 {[%clk 0:01:25.9]} 32... Nd7 {[%clk 0:01:03.9]} 33. f4 {[%clk 0:01:21]}
33... Rh8 {[%clk 0:01:00.8]} 34. Kg3 {[%clk 0:01:17.3]} 34... Rc8 {[%clk
0:00:49.9]} 35. Rh1 {[%clk 0:01:11.1]} 35... e5 {[%clk 0:00:50.2]} 36. fxe5
{[%clk 0:01:09.8]} 36... Nxe5 {[%clk 0:00:51.1]} 37. Kf4 {[%clk 0:01:07.8]}
37... Ke6 {[%clk 0:00:47.6]} 38. Rd1 {[%clk 0:00:55.4]} 38... Ng6+ {[%clk
0:00:45.6]} 39. Kf3 {[%clk 0:00:53.1]} 39... Rh8 {[%clk 0:00:44.5]} 40. Bxc5
{[%clk 0:00:50.4]} 40... Rh3+ {[%clk 0:00:44.4]} 41. Kf2 {[%clk 0:00:33.6]}
41... Nf4 {[%clk 0:00:35.7]} 42. Rd6+ {[%clk 0:00:27.3]} 42... Ke5 {[%clk
0:00:36.1]} 43. Rc6 {[%clk 0:00:25.3]} 43... Rh2+ {[%clk 0:00:33.4]} 44. Kg1
{[%clk 0:00:23.5]} 44... Rxa2 {[%clk 0:00:32.8]} 45. Bd6+ {[%clk 0:00:23.5]}
45... Ke4 {[%clk 0:00:33.4]} 46. Bxf4 {[%clk 0:00:24.2]} 46... Kxf4 {[%clk
0:00:34.3]} 47. g6 {[%clk 0:00:23.4]} 47... Kg5 {[%clk 0:00:32.6]} 48. b4 {[%clk
0:00:18.9]} 48... Rb2 {[%clk 0:00:27.5]} 49. Rxa6 {[%clk 0:00:18.3]} 49... Rxb4
{[%clk 0:00:28.1]} 50. Rc6 {[%clk 0:00:18.3]} 50... Rb2 {[%clk 0:00:27.9]} 51.
Kf1 {[%clk 0:00:18.3]} 51... Rc2 {[%clk 0:00:27.1]} 52. c5 {[%clk 0:00:18.4]}
52... f4 {[%clk 0:00:25.4]} 53. Kg1 {[%clk 0:00:17.6]} 53... Kg4 {[%clk
0:00:23.2]} 54. Rc7 {[%clk 0:00:16]} 54... Kg3 {[%clk 0:00:22.8]} 55. Kf1 {[%clk
0:00:15.6]} 55... f3 {[%clk 0:00:23.2]} 56. Ke1 {[%clk 0:00:16]} 56... f2+
{[%clk 0:00:16.1]} 57. Kd1 {[%clk 0:00:15.9]} 57... Ra2 {[%clk 0:00:16.8]} 58.
Rf7 {[%clk 0:00:15.8]} 58... Ra1+ {[%clk 0:00:17.3]} 59. Kd2 {[%clk 0:00:15.5]}
59... f1=Q {[%clk 0:00:17.5]} 60. Rxf1 {[%clk 0:00:16.4]} 60... Rxf1 {[%clk
0:00:17.6]} 61. Kd3 {[%clk 0:00:17.3]} 61... Rc1 {[%clk 0:00:17.1]} 62. Kd4
{[%clk 0:00:18.2]} 62... Kf4 {[%clk 0:00:17.5]} 63. Kd5 {[%clk 0:00:18.7]} 63...
Kf5 {[%clk 0:00:18.2]} 64. c6 {[%clk 0:00:19]} 64... Kxg6 {[%clk 0:00:18.5]} 65.
Kd6 {[%clk 0:00:19.9]} 65... Kf5 {[%clk 0:00:18.9]} 0-1

[Event "Early-Titled-Tuesday-Blitz-September-12-2023"]
[Site "Chess.com"]
[Date "2023.09.12"]
[Round "5"]
[White "dropstoneDP"]
[Black "Vladimir_Zakhartsov"]
[Result "1-0"]
[WhiteElo "3017"]
[BlackElo "2888"]
[TimeControl "180+1"]
[EndTime "8:55:41 PDT"]
[Termination "dropstoneDP won by resignation"]

1. e4 {[%clk 0:03:00.9]} 1... c5 {[%clk 0:02:51.4]} 2. Nf3 {[%clk 0:03:00.2]}
2... Nc6 {[%clk 0:02:51.1]} 3. Bb5 {[%clk 0:02:59.6]} 3... g6 {[%clk 0:02:50.7]}
4. O-O {[%clk 0:02:57.8]} 4... Bg7 {[%clk 0:02:50]} 5. Re1 {[%clk 0:02:58.5]}
5... Nf6 {[%clk 0:02:46.4]} 6. e5 {[%clk 0:02:57.9]} 6... Nd5 {[%clk 0:02:46.3]}
7. Nc3 {[%clk 0:02:58.5]} 7... Nc7 {[%clk 0:02:44.2]} 8. Bxc6 {[%clk 0:02:59.1]}
8... dxc6 {[%clk 0:02:43]} 9. d3 {[%clk 0:02:58.8]} 9... O-O {[%clk 0:02:39.7]}
10. h3 {[%clk 0:02:58.9]} 10... h6 {[%clk 0:02:39.3]} 11. Ne4 {[%clk 0:02:58.5]}
11... Ne6 {[%clk 0:02:38.7]} 12. Be3 {[%clk 0:02:57.5]} 12... b6 {[%clk
0:02:38.8]} 13. a4 {[%clk 0:02:58.2]} 13... a5 {[%clk 0:02:37.6]} 14. Qd2 {[%clk
0:02:57.7]} 14... Kh7 {[%clk 0:02:37.6]} 15. b3 {[%clk 0:02:57.9]} 15... Nd4
{[%clk 0:02:35.5]} 16. Nxd4 {[%clk 0:02:56.4]} 16... cxd4 {[%clk 0:02:35.3]} 17.
Bf4 {[%clk 0:02:57]} 17... c5 {[%clk 0:02:34.7]} 18. Re2 {[%clk 0:02:55.7]}
18... Bb7 {[%clk 0:02:25.2]} 19. Rae1 {[%clk 0:02:54.6]} 19... Qd5 {[%clk
0:02:25]} 20. f3 {[%clk 0:02:52.2]} 20... Rac8 {[%clk 0:02:20.5]} 21. h4 {[%clk
0:02:48.2]} 21... Rc6 {[%clk 0:02:18]} 22. Nf2 {[%clk 0:02:45.8]} 22... Bc8
{[%clk 0:02:08.1]} 23. Bh2 {[%clk 0:02:42]} 23... Bf5 {[%clk 0:01:52.6]} 24. Qf4
{[%clk 0:02:40]} 24... Qd7 {[%clk 0:01:42.6]} 25. Ne4 {[%clk 0:02:36.4]} 25...
Bxe4 {[%clk 0:01:41.3]} 26. Qxe4 {[%clk 0:02:36.3]} 26... Re6 {[%clk 0:01:32]}
27. h5 {[%clk 0:02:35.3]} 27... Qc6 {[%clk 0:01:27.2]} 28. Qxc6 {[%clk
0:02:16.9]} 28... Rxc6 {[%clk 0:01:27.2]} 29. e6 {[%clk 0:02:12.4]} 29... f5
{[%clk 0:01:16.8]} 30. g4 {[%clk 0:02:04]} 30... g5 {[%clk 0:01:12]} 31. gxf5
{[%clk 0:01:41.2]} 31... Rxf5 {[%clk 0:01:12.9]} 32. Kg2 {[%clk 0:01:41.9]}
32... Rc8 {[%clk 0:01:01.3]} 33. Re4 {[%clk 0:01:02.6]} 33... Bf6 {[%clk
0:00:50.4]} 34. R1e2 {[%clk 0:01:02.2]} 34... Rd5 {[%clk 0:00:49.4]} 35. Kh3
{[%clk 0:01:01.3]} 35... Rc6 {[%clk 0:00:40.3]} 36. Kg4 {[%clk 0:01:00.9]} 36...
Kg7 {[%clk 0:00:40.4]} 37. Rg2 {[%clk 0:00:56.8]} 37... b5 {[%clk 0:00:34]} 38.
axb5 {[%clk 0:00:56.1]} 38... Rb6 {[%clk 0:00:34.5]} 39. f4 {[%clk 0:00:56.6]}
39... Rxb5 {[%clk 0:00:34]} 40. Kf3 {[%clk 0:00:30.5]} 40... a4 {[%clk
0:00:30.8]} 41. bxa4 {[%clk 0:00:30.2]} 41... Ra5 {[%clk 0:00:31]} 42. fxg5
{[%clk 0:00:30]} 42... hxg5 {[%clk 0:00:15.2]} 43. Kg4 {[%clk 0:00:29.7]} 43...
Rxa4 {[%clk 0:00:14.9]} 44. c4 {[%clk 0:00:30.3]} 44... Rd8 {[%clk 0:00:09.9]}
45. Be5 {[%clk 0:00:29.6]} 45... Ra3 {[%clk 0:00:06.7]} 46. Kf5 {[%clk
0:00:28.4]} 46... Rxd3 {[%clk 0:00:05.6]} 47. Rxg5+ {[%clk 0:00:28.1]} 47... Kh7
{[%clk 0:00:06.2]} 48. Bxf6 {[%clk 0:00:26.4]} 48... Rf3+ {[%clk 0:00:04.5]} 49.
Rf4 {[%clk 0:00:19.9]} 49... Rxf4+ {[%clk 0:00:04.9]} 50. Kxf4 {[%clk
0:00:20.8]} 50... exf6 {[%clk 0:00:05.6]} 51. Rxc5 {[%clk 0:00:18.6]} 51... d3
{[%clk 0:00:04.2]} 52. Rc7+ {[%clk 0:00:19]} 52... Kh6 {[%clk 0:00:03.2]} 53.
Rd7 {[%clk 0:00:19.6]} 53... Re8 {[%clk 0:00:03.9]} 54. Kf5 {[%clk 0:00:19.6]}
1-0